[Event "*** Titled Tuesday Blitz"]
[Site "Chess.com"]
[Date "2019.04.02"]
[Round "7"]
[White "maestroza"]
[Black "kingofthenil"]
[Result "1-0"]
[WhiteElo "2483"]
[BlackElo "2411"]
[TimeControl "180+2"]
[EndTime "15:35:02 PDT"]
[Termination "maestroza won by checkmate"]

1. e4 {[%clk 0:03:01.9]} 1... e6 {[%clk 0:03:01]} 2. d4 {[%clk 0:03:02.5]} 2...
d5 {[%clk 0:03:02.9]} 3. Nc3 {[%clk 0:03:04.4]} 3... Nf6 {[%clk 0:03:03.8]} 4.
e5 {[%clk 0:03:05.7]} 4... Nfd7 {[%clk 0:03:05.3]} 5. Nf3 {[%clk 0:03:07]} 5...
c5 {[%clk 0:03:06.8]} 6. dxc5 {[%clk 0:03:08.9]} 6... Bxc5 {[%clk 0:03:08.1]} 7.
Bd3 {[%clk 0:03:09]} 7... Nc6 {[%clk 0:03:09.5]} 8. Qe2 {[%clk 0:03:10]} 8... a6
{[%clk 0:03:05.5]} 9. Bf4 {[%clk 0:03:09]} 9... b5 {[%clk 0:02:51]} 10. O-O
{[%clk 0:03:05.3]} 10... Nb6 {[%clk 0:02:50.3]} 11. b3 {[%clk 0:02:57.5]} 11...
Bd7 {[%clk 0:02:49]} 12. a4 {[%clk 0:02:44.5]} 12... b4 {[%clk 0:02:47.2]} 13.
Nd1 {[%clk 0:02:45.5]} 13... a5 {[%clk 0:02:46.1]} 14. Re1 {[%clk 0:02:17.3]}
14... Rc8 {[%clk 0:02:43.4]} 15. Nb2 {[%clk 0:02:01]} 15... Ne7 {[%clk
0:02:29.2]} 16. Rad1 {[%clk 0:01:45.7]} 16... h6 {[%clk 0:02:23.6]} 17. Bg3
{[%clk 0:01:46.7]} 17... O-O {[%clk 0:02:15.2]} 18. Bh4 {[%clk 0:01:43.3]} 18...
Qe8 {[%clk 0:02:16]} 19. Qd2 {[%clk 0:01:34.6]} 19... Ng6 {[%clk 0:02:16.3]} 20.
Bg3 {[%clk 0:01:34.9]} 20... Bc6 {[%clk 0:02:08.2]} 21. h4 {[%clk 0:01:24]}
21... Ne7 {[%clk 0:01:42.7]} 22. Qf4 {[%clk 0:01:22.2]} 22... f5 {[%clk
0:01:19.5]} 23. exf6 {[%clk 0:01:18.5]} 23... Rxf6 {[%clk 0:01:21]} 24. Qg4
{[%clk 0:01:15.1]} 24... Nf5 {[%clk 0:01:16.9]} 25. Be5 {[%clk 0:00:55.9]} 25...
Rg6 {[%clk 0:01:13.4]} 26. Qh3 {[%clk 0:00:57.1]} 26... Qf7 {[%clk 0:00:55.7]}
27. h5 {[%clk 0:00:53.1]} 27... Rf6 {[%clk 0:00:48.9]} 28. Bxf6 {[%clk
0:00:54.2]} 28... Qxf6 {[%clk 0:00:50.8]} 29. Bxf5 {[%clk 0:00:53.1]} 29... exf5
{[%clk 0:00:51.1]} 30. Nd3 {[%clk 0:00:54]} 30... Bd6 {[%clk 0:00:52.1]} 31. Qh4
{[%clk 0:00:40.9]} 31... Rf8 {[%clk 0:00:27.5]} 32. Qxf6 {[%clk 0:00:40.8]}
32... Rxf6 {[%clk 0:00:29.4]} 33. Nd4 {[%clk 0:00:42.4]} 33... Bd7 {[%clk
0:00:27.9]} 34. Ne5 {[%clk 0:00:39.9]} 34... Be8 {[%clk 0:00:28.8]} 35. Ng4
{[%clk 0:00:25.3]} 35... Rf8 {[%clk 0:00:29.6]} 36. Re6 {[%clk 0:00:18.5]} 36...
Nc8 {[%clk 0:00:20.4]} 37. Ne3 {[%clk 0:00:17.9]} 37... Bd7 {[%clk 0:00:18.5]}
38. Nxd5 {[%clk 0:00:15.9]} 38... Bxe6 {[%clk 0:00:18.8]} 39. Nxe6 {[%clk
0:00:17.8]} 39... Re8 {[%clk 0:00:19.2]} 40. Nd4 {[%clk 0:00:17]} 40... f4
{[%clk 0:00:19.1]} 41. Kf1 {[%clk 0:00:17.1]} 41... Ne7 {[%clk 0:00:19.7]} 42.
Nb6 {[%clk 0:00:14.5]} 42... Rb8 {[%clk 0:00:19.5]} 43. Nc4 {[%clk 0:00:15.2]}
43... Bc5 {[%clk 0:00:20.5]} 44. Ne6 {[%clk 0:00:16.6]} 44... Rc8 {[%clk
0:00:18.4]} 45. Nxf4 {[%clk 0:00:17.5]} 45... Kf7 {[%clk 0:00:18.9]} 46. Rd7
{[%clk 0:00:16.9]} 46... Rf8 {[%clk 0:00:18.9]} 47. Ne5+ {[%clk 0:00:14.5]}
47... Ke8 {[%clk 0:00:19.9]} 48. Nfd3 {[%clk 0:00:15.6]} 48... Bb6 {[%clk
0:00:18.5]} 49. Rb7 {[%clk 0:00:16.6]} 49... Bd8 {[%clk 0:00:17.3]} 50. f3
{[%clk 0:00:17.6]} 50... Rf5 {[%clk 0:00:17.9]} 51. g4 {[%clk 0:00:17.8]} 51...
Rf4 {[%clk 0:00:19.1]} 52. Nxf4 {[%clk 0:00:18.5]} 52... Nd5 {[%clk 0:00:13.9]}
53. Nxd5 {[%clk 0:00:19.3]} 53... g5 {[%clk 0:00:15.8]} 54. hxg6 {[%clk
0:00:20]} 54... h5 {[%clk 0:00:17.7]} 55. g7 {[%clk 0:00:21.2]} 55... h4 {[%clk
0:00:19.6]} 56. g8=Q# {[%clk 0:00:22.3]} 1-0

[Event "*** Titled Tuesday Blitz"]
[Site "Chess.com"]
[Date "2019.04.02"]
[Round "7"]
[White "Manukyan_Artak"]
[Black "ilm2034"]
[Result "1-0"]
[WhiteElo "2454"]
[BlackElo "2404"]
[TimeControl "180+2"]
[EndTime "15:35:02 PDT"]
[Termination "Manukyan_Artak won by checkmate"]

1. e4 {[%clk 0:03:01.9]} 1... g6 {[%clk 0:02:58.3]} 2. d4 {[%clk 0:03:02.4]}
2... Bg7 {[%clk 0:02:59.2]} 3. c4 {[%clk 0:03:03.2]} 3... c5 {[%clk 0:03:00.1]}
4. d5 {[%clk 0:03:03.4]} 4... e5 {[%clk 0:03:01.5]} 5. Nc3 {[%clk 0:03:02.4]}
5... d6 {[%clk 0:03:02.9]} 6. Bd3 {[%clk 0:03:01.6]} 6... Ne7 {[%clk 0:03:04.2]}
7. g4 {[%clk 0:03:00.5]} 7... Na6 {[%clk 0:03:03.7]} 8. h4 {[%clk 0:03:00.7]}
8... Nc7 {[%clk 0:03:01.2]} 9. h5 {[%clk 0:02:59.8]} 9... Bd7 {[%clk 0:02:53.3]}
10. h6 {[%clk 0:02:43.9]} 10... Bf8 {[%clk 0:02:40.7]} 11. Bg5 {[%clk
0:02:43.5]} 11... Qb8 {[%clk 0:02:35.6]} 12. Bf6 {[%clk 0:02:38.5]} 12... Rg8
{[%clk 0:02:36.6]} 13. a4 {[%clk 0:02:39.4]} 13... b6 {[%clk 0:02:36.2]} 14. f3
{[%clk 0:02:26.9]} 14... a6 {[%clk 0:02:35.4]} 15. Nge2 {[%clk 0:02:25.8]} 15...
Nc8 {[%clk 0:02:23.5]} 16. Qb3 {[%clk 0:02:21.5]} 16... Be7 {[%clk 0:02:22.1]}
17. Bxe7 {[%clk 0:02:16.3]} 17... Nxe7 {[%clk 0:02:20.6]} 18. Ra3 {[%clk
0:01:59.7]} 18... f6 {[%clk 0:02:19.6]} 19. Kd2 {[%clk 0:01:54]} 19... Kf7
{[%clk 0:02:19.6]} 20. Rha1 {[%clk 0:01:52.3]} 20... f5 {[%clk 0:02:15.2]} 21.
gxf5 {[%clk 0:01:46.2]} 21... gxf5 {[%clk 0:02:15.2]} 22. exf5 {[%clk 0:01:38]}
22... Nxf5 {[%clk 0:02:12.1]} 23. Qc2 {[%clk 0:01:36.4]} 23... Nd4 {[%clk
0:01:59.9]} 24. Nxd4 {[%clk 0:01:37.2]} 24... cxd4 {[%clk 0:02:01.1]} 25. Ne2
{[%clk 0:01:38.4]} 25... Qf8 {[%clk 0:02:01.9]} 26. Rh1 {[%clk 0:01:32.5]} 26...
Ke7 {[%clk 0:01:57.5]} 27. Bxh7 {[%clk 0:01:30.8]} 27... Rh8 {[%clk 0:01:58.6]}
28. Qg6 {[%clk 0:01:28.9]} 28... Ne8 {[%clk 0:01:53.4]} 29. Qg5+ {[%clk
0:01:19.4]} 29... Nf6 {[%clk 0:01:51]} 30. Be4 {[%clk 0:01:13.2]} 30... Rc8
{[%clk 0:01:48.5]} 31. b3 {[%clk 0:01:00.7]} 31... Rg8 {[%clk 0:01:41]} 32. Qh4
{[%clk 0:00:59.4]} 32... Kd8 {[%clk 0:01:40.2]} 33. h7 {[%clk 0:00:56.9]} 33...
Rh8 {[%clk 0:01:40.4]} 34. Raa1 {[%clk 0:00:55]} 34... Kc7 {[%clk 0:01:40.9]}
35. Rag1 {[%clk 0:00:55.4]} 35... b5 {[%clk 0:01:35]} 36. axb5 {[%clk
0:00:49.4]} 36... axb5 {[%clk 0:01:35.5]} 37. Qh6 {[%clk 0:00:41.6]} 37... Nxe4+
{[%clk 0:01:30.9]} 38. fxe4 {[%clk 0:00:41.1]} 38... Qf2 {[%clk 0:01:32.2]} 39.
Rh2 {[%clk 0:00:38.4]} 39... Qf3 {[%clk 0:01:29.7]} 40. Rg3 {[%clk 0:00:30.5]}
40... Qxe4 {[%clk 0:01:29.7]} 41. Rg7 {[%clk 0:00:29.4]} 41... Rcd8 {[%clk
0:01:11]} 42. Rf2 {[%clk 0:00:24.4]} 42... bxc4 {[%clk 0:01:04.8]} 43. bxc4
{[%clk 0:00:22.6]} 43... d3 {[%clk 0:00:51.3]} 44. Nc3 {[%clk 0:00:21.6]} 44...
Qxc4 {[%clk 0:00:52.6]} 45. Rff7 {[%clk 0:00:22.1]} 45... Qb4 {[%clk 0:00:14]}
46. Kxd3 {[%clk 0:00:19.9]} 46... Qd4+ {[%clk 0:00:14.7]} 47. Kc2 {[%clk
0:00:21]} 47... Qc5 {[%clk 0:00:09.8]} 48. Qe6 {[%clk 0:00:20.7]} 48... Kb6
{[%clk 0:00:07.7]} 49. Rxd7 {[%clk 0:00:21.2]} 49... Rxd7 {[%clk 0:00:08.6]} 50.
Rxd7 {[%clk 0:00:21.9]} 50... Ra8 {[%clk 0:00:09.5]} 51. Rxd6+ {[%clk
0:00:22.9]} 51... Kb7 {[%clk 0:00:10.6]} 52. Qd7+ {[%clk 0:00:23.4]} 52... Kb8
{[%clk 0:00:11.9]} 53. Qd8+ {[%clk 0:00:24.3]} 53... Kb7 {[%clk 0:00:13]} 54.
Rd7+ {[%clk 0:00:25.7]} 54... Ka6 {[%clk 0:00:14.1]} 55. Qxa8+ {[%clk
0:00:26.5]} 55... Qa7 {[%clk 0:00:15.3]} 56. Qxa7# {[%clk 0:00:27.6]} 1-0

[Event "*** Titled Tuesday Blitz"]
[Site "Chess.com"]
[Date "2019.04.02"]
[Round "7"]
[White "AryanTari"]
[Black "GadimbayliA"]
[Result "0-1"]
[WhiteElo "2839"]
[BlackElo "2822"]
[TimeControl "180+2"]
[EndTime "15:35:03 PDT"]
[Termination "GadimbayliA won by resignation"]

1. e4 {[%clk 0:02:55.9]} 1... e6 {[%clk 0:03:00.8]} 2. d4 {[%clk 0:02:52.9]}
2... d5 {[%clk 0:03:02.7]} 3. Nc3 {[%clk 0:02:53.4]} 3... Ne7 {[%clk 0:03:03.2]}
4. Nf3 {[%clk 0:02:52]} 4... a6 {[%clk 0:03:03.3]} 5. Bd3 {[%clk 0:02:43.1]}
5... Nbc6 {[%clk 0:03:03.7]} 6. O-O {[%clk 0:02:35.6]} 6... g6 {[%clk
0:03:03.7]} 7. exd5 {[%clk 0:02:07.4]} 7... exd5 {[%clk 0:03:03.3]} 8. Bf4
{[%clk 0:02:08.9]} 8... Bg7 {[%clk 0:03:02.8]} 9. h3 {[%clk 0:02:09.2]} 9... O-O
{[%clk 0:03:03.2]} 10. Re1 {[%clk 0:02:06.5]} 10... Nxd4 {[%clk 0:02:24.1]} 11.
Nxd4 {[%clk 0:01:25.9]} 11... Bxd4 {[%clk 0:02:26]} 12. Qd2 {[%clk 0:01:27.6]}
12... Bg7 {[%clk 0:02:19.3]} 13. Bg5 {[%clk 0:01:23.2]} 13... f6 {[%clk
0:02:18.3]} 14. Bf4 {[%clk 0:01:22.7]} 14... c6 {[%clk 0:02:13.7]} 15. Re2
{[%clk 0:01:23.1]} 15... Bf5 {[%clk 0:01:45.5]} 16. Rae1 {[%clk 0:01:20.4]}
16... Rf7 {[%clk 0:01:46.8]} 17. Na4 {[%clk 0:01:17.3]} 17... b6 {[%clk
0:01:16]} 18. Nxb6 {[%clk 0:01:07.6]} 18... Qxb6 {[%clk 0:00:49.5]} 19. Rxe7
{[%clk 0:01:01.8]} 19... Rxe7 {[%clk 0:00:51.4]} 20. Rxe7 {[%clk 0:00:57.8]}
20... Bf8 {[%clk 0:00:52.4]} 21. Re2 {[%clk 0:00:48.4]} 21... Bxd3 {[%clk
0:00:52]} 22. cxd3 {[%clk 0:00:50.3]} 22... Kf7 {[%clk 0:00:51.9]} 23. d4 {[%clk
0:00:46.5]} 23... Re8 {[%clk 0:00:50.4]} 24. Be3 {[%clk 0:00:44.8]} 24... Bd6
{[%clk 0:00:43.1]} 25. Qc1 {[%clk 0:00:45.5]} 25... Bf4 {[%clk 0:00:39.9]} 26.
Rc2 {[%clk 0:00:44.1]} 26... Bxe3 {[%clk 0:00:40.6]} 27. fxe3 {[%clk 0:00:45.2]}
27... Re6 {[%clk 0:00:42.2]} 28. Rc5 {[%clk 0:00:43.4]} 28... Qb7 {[%clk
0:00:40.2]} 29. Qc3 {[%clk 0:00:44.1]} 29... Qc7 {[%clk 0:00:37.9]} 30. Kf2
{[%clk 0:00:37.8]} 30... Qb7 {[%clk 0:00:28.3]} 31. Qb3 {[%clk 0:00:37.7]} 31...
Qe7 {[%clk 0:00:27]} 32. Qc3 {[%clk 0:00:31]} 32... Qb7 {[%clk 0:00:23]} 33. Qb3
{[%clk 0:00:31.1]} 33... Qe7 {[%clk 0:00:23.7]} 34. Ra5 {[%clk 0:00:25.2]} 34...
f5 {[%clk 0:00:22.8]} 35. Rxa6 {[%clk 0:00:23.1]} 35... f4 {[%clk 0:00:21.3]}
36. exf4 {[%clk 0:00:22.1]} 36... Qh4+ {[%clk 0:00:22.6]} 37. Kg1 {[%clk
0:00:19.4]} 37... Re1+ {[%clk 0:00:20.5]} 38. Kh2 {[%clk 0:00:07.8]} 38... Qxf4+
{[%clk 0:00:22.4]} 39. Qg3 {[%clk 0:00:09.3]} 39... Rh1+ {[%clk 0:00:22.6]} 40.
Kxh1 {[%clk 0:00:11]} 40... Qxg3 {[%clk 0:00:24.5]} 41. Rxc6 {[%clk 0:00:06.3]}
41... Qe1+ {[%clk 0:00:23.7]} 42. Kh2 {[%clk 0:00:07.6]} 42... Qf2 {[%clk
0:00:25.2]} 43. Rc7+ {[%clk 0:00:05.8]} 43... Ke6 {[%clk 0:00:24.5]} 44. Rxh7
{[%clk 0:00:05.9]} 44... Qxb2 {[%clk 0:00:25.4]} 45. Rh4 {[%clk 0:00:04]} 45...
Qxa2 {[%clk 0:00:21.5]} 46. Rg4 {[%clk 0:00:04.3]} 46... Kf5 {[%clk 0:00:21.9]}
47. Kh1 {[%clk 0:00:03.1]} 47... Qe2 {[%clk 0:00:21.5]} 48. Kh2 {[%clk
0:00:02.9]} 48... Qxg4 {[%clk 0:00:16.6]} 49. hxg4+ {[%clk 0:00:04.8]} 49...
Kxg4 {[%clk 0:00:18.5]} 50. Kg1 {[%clk 0:00:04.8]} 50... Kf4 {[%clk 0:00:18.9]}
51. Kf2 {[%clk 0:00:06]} 51... Ke4 {[%clk 0:00:20.3]} 52. Kg3 {[%clk 0:00:05.5]}
52... Kxd4 {[%clk 0:00:22.2]} 53. Kf4 {[%clk 0:00:07.4]} 53... Kc3 {[%clk
0:00:23.7]} 54. Kg5 {[%clk 0:00:09.1]} 54... d4 {[%clk 0:00:25.6]} 55. Kxg6
{[%clk 0:00:11]} 55... d3 {[%clk 0:00:27.5]} 56. g4 {[%clk 0:00:12.6]} 56... d2
{[%clk 0:00:29.4]} 0-1

[Event "*** Titled Tuesday Blitz"]
[Site "Chess.com"]
[Date "2019.04.02"]
[Round "7"]
[White "Fy_Rakotomaharo"]
[Black "vugarrasulov"]
[Result "1-0"]
[WhiteElo "2642"]
[BlackElo "2836"]
[TimeControl "180+2"]
[EndTime "15:35:04 PDT"]
[Termination "Fy_Rakotomaharo won by resignation"]

1. d4 {[%clk 0:03:01.9]} 1... Nf6 {[%clk 0:03:00.8]} 2. c4 {[%clk 0:03:03.4]}
2... g6 {[%clk 0:03:01.8]} 3. Nc3 {[%clk 0:03:04.7]} 3... Bg7 {[%clk 0:03:03.1]}
4. e4 {[%clk 0:03:05.6]} 4... O-O {[%clk 0:03:04.6]} 5. Be2 {[%clk 0:03:06.8]}
5... d6 {[%clk 0:03:05.9]} 6. Bg5 {[%clk 0:03:06.7]} 6... c5 {[%clk 0:03:06.5]}
7. d5 {[%clk 0:03:07.6]} 7... b5 {[%clk 0:03:07.8]} 8. cxb5 {[%clk 0:03:08.1]}
8... a6 {[%clk 0:03:09]} 9. a4 {[%clk 0:03:09.3]} 9... Qa5 {[%clk 0:03:00.1]}
10. Qd2 {[%clk 0:03:05]} 10... axb5 {[%clk 0:02:58.5]} 11. Bxb5 {[%clk
0:03:05.2]} 11... Ba6 {[%clk 0:02:58.1]} 12. Bxa6 {[%clk 0:02:43.2]} 12... Nxa6
{[%clk 0:02:57.8]} 13. Nge2 {[%clk 0:02:44.8]} 13... Qb4 {[%clk 0:02:54.8]} 14.
f3 {[%clk 0:02:39.2]} 14... Rab8 {[%clk 0:02:53.3]} 15. O-O {[%clk 0:01:59.9]}
15... Qxb2 {[%clk 0:02:53.9]} 16. Nb5 {[%clk 0:02:01.2]} 16... Qxd2 {[%clk
0:02:50.7]} 17. Bxd2 {[%clk 0:02:03.1]} 17... Nd7 {[%clk 0:02:44.9]} 18. Bc3
{[%clk 0:02:04.3]} 18... Nb6 {[%clk 0:02:40.8]} 19. Bxg7 {[%clk 0:02:01.4]}
19... Kxg7 {[%clk 0:02:42.7]} 20. Nec3 {[%clk 0:02:02.7]} 20... Ra8 {[%clk
0:02:35]} 21. a5 {[%clk 0:01:53.2]} 21... Nc4 {[%clk 0:02:34]} 22. Ra4 {[%clk
0:01:54.6]} 22... Nb4 {[%clk 0:02:32.6]} 23. Rfa1 {[%clk 0:01:56.1]} 23... Nb2
{[%clk 0:02:28.5]} 24. R4a3 {[%clk 0:01:20.6]} 24... Nc2 {[%clk 0:02:16.2]} 25.
a6 {[%clk 0:01:21.7]} 25... Nxa1 {[%clk 0:02:14.2]} 26. Rxa1 {[%clk 0:01:22.3]}
26... Rfb8 {[%clk 0:02:10.8]} 27. Nc7 {[%clk 0:01:17.4]} 27... Nc4 {[%clk
0:01:52.1]} 28. Nxa8 {[%clk 0:01:14.1]} 28... Rxa8 {[%clk 0:01:54]} 29. a7
{[%clk 0:01:02.7]} 29... Nb6 {[%clk 0:01:49.5]} 30. Nb5 {[%clk 0:00:56.8]} 30...
Nc8 {[%clk 0:01:50.2]} 31. Kf2 {[%clk 0:00:52.4]} 31... Kf8 {[%clk 0:01:45.7]}
32. Ke3 {[%clk 0:00:50.2]} 32... e6 {[%clk 0:01:46.9]} 33. Ra6 {[%clk
0:00:45.5]} 33... exd5 {[%clk 0:01:43.7]} 34. exd5 {[%clk 0:00:46]} 34... Ke7
{[%clk 0:01:45.2]} 35. Rc6 {[%clk 0:00:46.6]} 35... Kf6 {[%clk 0:01:31]} 36. Rc7
{[%clk 0:00:44.9]} 36... Ke5 {[%clk 0:01:16.4]} 37. Rxf7 {[%clk 0:00:39.4]}
37... Nxa7 {[%clk 0:01:07.9]} 38. Rxa7 {[%clk 0:00:38.1]} 38... Rb8 {[%clk
0:01:07.1]} 39. Nc3 {[%clk 0:00:38]} 39... Rb2 {[%clk 0:01:07.7]} 40. g4 {[%clk
0:00:29.3]} 40... Rb3 {[%clk 0:01:03.2]} 41. f4+ {[%clk 0:00:28.5]} 41... Kf6
{[%clk 0:01:04]} 42. Kd3 {[%clk 0:00:29.2]} 42... h5 {[%clk 0:00:57.9]} 43. gxh5
{[%clk 0:00:28.3]} 43... gxh5 {[%clk 0:00:58.6]} 44. Rh7 {[%clk 0:00:29.2]}
44... Kf5 {[%clk 0:00:52.9]} 45. Rxh5+ {[%clk 0:00:29.6]} 45... Kxf4 {[%clk
0:00:54.1]} 46. Rh6 {[%clk 0:00:30.6]} 46... Rb4 {[%clk 0:00:47.3]} 47. Rxd6
{[%clk 0:00:26]} 47... Kf5 {[%clk 0:00:41.5]} 48. Rh6 {[%clk 0:00:22.3]} 48...
Rd4+ {[%clk 0:00:41.9]} 49. Ke3 {[%clk 0:00:22]} 49... Rc4 {[%clk 0:00:42.7]}
50. Ne2 {[%clk 0:00:21.4]} 50... Re4+ {[%clk 0:00:41.8]} 51. Kf3 {[%clk
0:00:21.4]} 51... Rb4 {[%clk 0:00:42.8]} 52. d6 {[%clk 0:00:21]} 52... Rb3+
{[%clk 0:00:43.2]} 53. Kf2 {[%clk 0:00:22.5]} 53... Rd3 {[%clk 0:00:44.1]} 54.
Ng3+ {[%clk 0:00:19]} 54... Ke5 {[%clk 0:00:44.2]} 55. Ke2 {[%clk 0:00:19.1]}
55... c4 {[%clk 0:00:45]} 56. Nf1 {[%clk 0:00:15.2]} 56... Ke4 {[%clk
0:00:39.7]} 57. Rh4+ {[%clk 0:00:14.8]} 57... Kd5 {[%clk 0:00:38.7]} 58. Ne3+
{[%clk 0:00:15.4]} 1-0

[Event "*** Titled Tuesday Blitz"]
[Site "Chess.com"]
[Date "2019.04.02"]
[Round "7"]
[White "Yoshkinkot"]
[Black "Floatingdream1"]
[Result "1/2-1/2"]
[WhiteElo "2578"]
[BlackElo "2813"]
[TimeControl "180+2"]
[EndTime "15:35:05 PDT"]
[Termination "Game drawn by agreement"]

1. e4 {[%clk 0:03:01.4]} 1... c5 {[%clk 0:03:00.4]} 2. Nf3 {[%clk 0:03:01.5]}
2... g6 {[%clk 0:03:01.5]} 3. d4 {[%clk 0:03:00.9]} 3... cxd4 {[%clk 0:03:02.6]}
4. Qxd4 {[%clk 0:03:02.1]} 4... Nf6 {[%clk 0:03:02.9]} 5. Nc3 {[%clk 0:03:03.3]}
5... Nc6 {[%clk 0:03:03.7]} 6. Qa4 {[%clk 0:03:04.5]} 6... Bg7 {[%clk
0:03:00.2]} 7. e5 {[%clk 0:02:46.3]} 7... Ng8 {[%clk 0:03:00.7]} 8. Bf4 {[%clk
0:02:40]} 8... Nh6 {[%clk 0:03:01.4]} 9. Bc4 {[%clk 0:02:28.3]} 9... O-O {[%clk
0:02:59.8]} 10. O-O {[%clk 0:02:26.4]} 10... d6 {[%clk 0:02:39.4]} 11. exd6
{[%clk 0:02:18.1]} 11... e5 {[%clk 0:02:35.3]} 12. Bxh6 {[%clk 0:01:57]} 12...
Bxh6 {[%clk 0:02:36.3]} 13. Rad1 {[%clk 0:01:54.4]} 13... Bd7 {[%clk 0:02:37]}
14. Qa3 {[%clk 0:01:47.8]} 14... Kg7 {[%clk 0:02:35.7]} 15. Bd5 {[%clk
0:01:43.4]} 15... f6 {[%clk 0:02:25.7]} 16. Rfe1 {[%clk 0:01:42.6]} 16... Rc8
{[%clk 0:02:25.5]} 17. Ne4 {[%clk 0:01:40.3]} 17... b6 {[%clk 0:02:14.7]} 18. c3
{[%clk 0:01:24.4]} 18... f5 {[%clk 0:02:00.5]} 19. Ng3 {[%clk 0:01:06.4]} 19...
e4 {[%clk 0:01:59.9]} 20. Bxc6 {[%clk 0:01:04.6]} 20... Rxc6 {[%clk 0:01:51.3]}
21. Ne5 {[%clk 0:01:03.5]} 21... Rc5 {[%clk 0:01:52.2]} 22. Nxd7 {[%clk
0:00:26.8]} 22... Qxd7 {[%clk 0:01:52.4]} 23. Ne2 {[%clk 0:00:22.7]} 23... Re8
{[%clk 0:01:37.2]} 24. Nd4 {[%clk 0:00:21.6]} 24... Bf4 {[%clk 0:01:33.6]} 25.
Nb3 {[%clk 0:00:19.5]} 25... Rc6 {[%clk 0:01:31.3]} 26. Qa4 {[%clk 0:00:20.2]}
26... Kh6 {[%clk 0:00:43]} 27. g3 {[%clk 0:00:12.9]} 27... Be5 {[%clk
0:00:37.2]} 28. f3 {[%clk 0:00:10.4]} 28... Rd8 {[%clk 0:00:33.4]} 29. fxe4
{[%clk 0:00:10.8]} 29... f4 {[%clk 0:00:34.7]} 30. Qb5 {[%clk 0:00:09.6]} 30...
Rxd6 {[%clk 0:00:31]} 31. Qxd7 {[%clk 0:00:09.6]} 31... R8xd7 {[%clk 0:00:30.8]}
32. Rxd6 {[%clk 0:00:11]} 32... Rxd6 {[%clk 0:00:32]} 33. gxf4 {[%clk
0:00:12.1]} 33... Bxf4 {[%clk 0:00:33.3]} 34. Re2 {[%clk 0:00:11.7]} 34... Kg5
{[%clk 0:00:33.8]} 35. Kg2 {[%clk 0:00:12.9]} 35... Rd1 {[%clk 0:00:34.6]} 36.
Nd4 {[%clk 0:00:13.4]} 36... Kf6 {[%clk 0:00:33.7]} 37. Nf3 {[%clk 0:00:12.4]}
37... g5 {[%clk 0:00:31.3]} 38. h3 {[%clk 0:00:12.6]} 38... h5 {[%clk
0:00:31.8]} 39. e5+ {[%clk 0:00:14]} 39... Ke7 {[%clk 0:00:32.9]} 40. Nd4 {[%clk
0:00:14.8]} 40... a6 {[%clk 0:00:21.7]} 41. e6 {[%clk 0:00:15.8]} 41... Rd2
{[%clk 0:00:22.8]} 42. Nc6+ {[%clk 0:00:07.6]} 42... Kd6 {[%clk 0:00:22.1]} 43.
Rxd2+ {[%clk 0:00:07.8]} 43... Bxd2 {[%clk 0:00:23.3]} 44. e7 {[%clk 0:00:08.6]}
44... Kd7 {[%clk 0:00:24.6]} 45. Kf3 {[%clk 0:00:07.5]} 45... b5 {[%clk
0:00:23.2]} 46. Nb8+ {[%clk 0:00:06.2]} 46... Kxe7 {[%clk 0:00:23.4]} 47. Nxa6
{[%clk 0:00:07.9]} 47... Bc1 {[%clk 0:00:24.7]} 48. b3 {[%clk 0:00:08.8]} 48...
Kd6 {[%clk 0:00:26.1]} 49. c4 {[%clk 0:00:07.1]} 49... bxc4 {[%clk 0:00:27.3]}
50. bxc4 {[%clk 0:00:08.7]} 50... Bd2 {[%clk 0:00:27.7]} 51. a3 {[%clk 0:00:07]}
51... Kc6 {[%clk 0:00:27.6]} 52. Nb4+ {[%clk 0:00:07.6]} 52... Kc5 {[%clk
0:00:28.6]} 53. Nd3+ {[%clk 0:00:08.9]} 53... Kxc4 {[%clk 0:00:29.6]} 54. Ne5+
{[%clk 0:00:10.5]} 54... Kb3 {[%clk 0:00:30.8]} 55. Ke4 {[%clk 0:00:09.5]} 55...
g4 {[%clk 0:00:31.2]} 56. hxg4 {[%clk 0:00:10.5]} 56... hxg4 {[%clk 0:00:32.4]}
57. Nxg4 {[%clk 0:00:11.5]} 57... Kxa3 {[%clk 0:00:33.7]} 58. Kd3 {[%clk
0:00:12.9]} 1/2-1/2